{"text_format":"3","workbook":"xlsx","n_sheets":4,"sheets":["Začetek","Poročilo mesečnega proračuna","Mesečni stroški","Dodatni podatki"],"not_rendered":{"charts":1,"defined_names":4,"pivot_tables":2},"read":"whole","date_system":"1900"}

{"sheet":"Začetek","index":0,"n_rows":8,"n_cols":2,"rows_kept":8}
[null,"O TEJ PREDLOGI"]
[null,"S tem delovnim zvezkom lahko spremljate stroške in ustvarite družinski proračun."]
[null,"Vnesite predvideni in dejanski dohodek iz različnih virov na delovni list »Poročilo mesečnega proračuna«, predvidene in dejanske zneske, porabljene za različne kategorije, pa na delovni list »Mesečni stroški«."]
[null,"Predvidena in dejanska bilanca in razlika sta samodejno izračunani, grafikon »Povzetek proračuna« in »Pregled proračuna« pa sta posodobljena na delovnem listu »Poročilo mesečnega proračuna«."]
[null,"Kategorijo lahko spremenite ali pa vnesete novo kategorijo v tabelo na delovnem listu »Dodatni podatki«."]
[null,"Opomba: "]
[null,"dodatna navodila so na voljo v stolpcu A na delovnem listu POROČILO MESEČNEGA PRORAČUNA in v celici A1 na delovnih listih MESEČNI STROŠKI in DODATNI PODATKI. To besedilo je bilo skrito namenoma. Če želite besedilo odstraniti, izberite stolpec A ali celico A1, nato pa izberite IZBRIŠI. Če želite besedilo razkriti, izberite stolpec A ali celico A1, nato pa zamenjajte barvo pisave."]
[null,"Za več informacij o tabelah v tabeli pritisnite tipko SHIFT in nato tipko F10 ter izberite možnost TABELA in nato še NADOMESTNO BESEDILO. Za vrtilne tabele pritisnite SHIFT, nato v tabeli pritisnite F10, izberite MOŽNOSTI VRTILNIH TABEL, nato pa izberite zavihek NADOMESTNO BESEDILO."]

{"sheet":"Poročilo mesečnega proračuna","index":1,"n_rows":34,"n_cols":14,"rows_kept":34,"merged":[[0,1,0,4],[0,5,0,7],[0,12,0,13],[1,9,5,13],[2,2,2,5],[3,2,3,5],[4,2,4,5],[7,1,10,1],[7,5,10,5],[7,6,10,6],[8,9,31,9],[12,1,16,1],[12,5,16,5],[12,6,16,6],[19,1,34,6]]}
["Na tem delovnem listu lahko ustvarite poročilo mesečnega proračuna. Naslov tega delovnega lista je v celici na desni, podnaslov pa v celici J1. Če se želite premakniti na delovni list »Mesečni stroški«, izberite celico F1. Druga navodila za uporabo tega delovnega lista najdete v celicah v tem stolpcu.","Pregled proračuna",{"$nulls":3},"Mesečni stroški",{"$nulls":3},"Povzetek proračuna",null,null,"Eno pšenično steblo zelene barve je v tej celici."]
["Oznaka za bilanca je v celici na desni. Razčlenjevalniki vrtilne tabele za filtriranje podatkov tabele so v celicah od J2 do N6. Če želite izbrati več kategorij, pridržite tipko Control.","Bilanca",{"$nulls":7},"Razčlenjevalnik kategorija za filtriranje spodnje vrtilne tabele po kategoriji je v tej celici."]
["Oznaka za predvidena bilanca je v celici na desni. Predvidena bilanca je samodejno izračunana v celici G3.","Predvidena bilanca","(Predvideno minus stroški)",{"$nulls":3},{"$f":"D17-SUM(Podatki_o_proračunu[Predvideni stroški])","v":{"v":1585,"d":"1,585 €"}}]
["Oznaka za dejanska bilanca je v celici na desni. Dejanska bilanca je samodejno izračunana v celici G4.","Dejanska bilanca ","(Dejansko minus stroški)",{"$nulls":3},{"$f":"D11-SUM(Podatki_o_proračunu[Dejanski stroški])","v":{"v":1740,"d":"1,740 €"}}]
["Oznaka za razlika je v celici na desni. Razlika je samodejno izračunana v celici G5. Naslednji korak je v celici A7.","Razlika","(Dejansko minus predvideno)",{"$nulls":3},{"$f":"G4-G3","v":{"v":155,"d":"155 €"}}]
[]
["Oznaka za dohodek je v celici na desni, oznaka za stroške v celici F7, namig za povzetek proračuna pa v celici J7.","Dohodek",{"$nulls":3},"Stroški",{"$nulls":3},"Izberite vrtilno tabelo spodaj in nato še možnost Osveži na zavihku »Analiziraj« za posodobitev."]
["Oznaka za dejanski dohodek je v celici na desni, oznaka za dejanske stroške pa v celici F8. Vnesite dohodek 1 v celico D8. Dejanski stroški so samodejno izračunani v celici G8.","DEJANSKO","Dohodek 1",{"v":5800,"d":"5,800 €"},null,"DEJANSKO",{"$f":"SUM(Podatki_o_proračunu[Dejanski stroški])","v":{"v":7860,"d":"7,860 €"}}]
["Vnesite dohodek 2 v celico D9. Slika je v celici J9. Vrtilna tabela se začne v celici K9. Če želite posodobiti vrtilno tabelo, na zavihku »Analiziraj« izberite možnost »Osveži«.",null,"Dohodek 2",{"v":2300,"d":"2,300 €"},{"$nulls":5},"Slika je v tej celici.","Kategorija","Predvideni stroški ","Dejanski stroški ","Razlika "]
["Dodatni dohodek vnesite v celico D10.",null,"Dodatni dohodek",{"v":1500,"d":"1,500 €"},{"$nulls":6},"Darila in nakazila dobrodelnim ustanovam",{"v":100,"d":"100 €"},{"v":125,"d":"125 €"},{"v":-25,"d":"-25 €"}]
["Oznaka skupnj dohodek je v celici C11, oznaka skupnj pa je samodejno izračunan v celici D11. Naslednji korak je v celici A13.",null,"Dohodek skupaj",{"$f":"SUM(D8:D10)","v":{"v":9600,"d":"9,600 €"}}]
[{"$nulls":10},"Davki",{"v":300,"d":"300 €"},{"v":300,"d":"300 €"},{"v":0,"d":"0 €"}]
["Oznaka za predviden dohodek je v celici na desni, oznaka za predvidene stroške pa v celici F13. Predvideni stroški so samodejno izračunani v celici G13.","PREDVIDENO",{"$nulls":3},"PREDVIDENO",{"$f":"SUM(Podatki_o_proračunu[Predvideni stroški])","v":{"v":7915,"d":"7,915 €"}}]
["Vnesite predviden dohodek 1 v celico D14.",null,"Dohodek 1",{"v":6000,"d":"6,000 €"},{"$nulls":6},"Hišni ljubljenčki",{"v":170,"d":"170 €"},{"v":100,"d":"100 €"},{"v":70,"d":"70 €"}]
["Vnesite predviden dohodek 2 v celico D15.",null,"Dohodek 2",{"v":1000,"d":"1,000 €"}]
["Dodatni dohodek vnesite v celico D16.",null,"Dodatni dohodek",{"v":2500,"d":"2,500 €"},{"$nulls":6},"Hrana",{"v":1100,"d":"1,100 €"},{"v":1320,"d":"1,320 €"},{"v":-220,"d":"-220 €"}]
["Oznaka skupnj dohodek je v celici C17, oznaka skupnj pa je samodejno izračunan v celici D17. Naslednje navodilo je v celici A20.",null,"Dohodek skupaj",{"$f":"SUM(D14:D16)","v":{"v":9500,"d":"9,500 €"}}]
[{"$nulls":10},"Nastanitev",{"v":2830,"d":"2,830 €"},{"v":2702,"d":"2,702 €"},{"v":128,"d":"128 €"}]
[]
["Tortni grafikon, ki prikazuje odstotek stroškov po kategoriji, je v celici na desni.","Tortni grafikon, ki prikazuje odstotek stroškov po kategoriji, je v tej celici.",{"$nulls":8},"Osebna nega",{"v":150,"d":"150 €"},{"v":140,"d":"140 €"},{"v":10,"d":"10 €"}]
[]
[{"$nulls":10},"Otroci",{"v":140,"d":"140 €"},{"v":140,"d":"140 €"},{"v":0,"d":"0 €"}]
[]
[{"$nulls":10},"Posojila",{"v":200,"d":"200 €"},{"v":200,"d":"200 €"},{"v":0,"d":"0 €"}]
[]
[{"$nulls":10},"Prevoz",{"v":1425,"d":"1,425 €"},{"v":1375,"d":"1,375 €"},{"v":50,"d":"50 €"}]
[]
[{"$nulls":10},"Prihranki ali naložbe",{"v":200,"d":"200 €"},{"v":200,"d":"200 €"},{"v":0,"d":"0 €"}]
[]
[{"$nulls":10},"Razvedrilo",{"v":400,"d":"400 €"},{"v":358,"d":"358 €"},{"v":42,"d":"42 €"}]
[]
[{"$nulls":10},"Zavarovanje",{"v":900,"d":"900 €"},{"v":900,"d":"900 €"},{"v":0,"d":"0 €"}]
[]
[{"$nulls":10},"Skupna vsota",{"v":7915,"d":"7,915 €"},{"v":7860,"d":"7,860 €"},{"v":55,"d":"55 €"}]

{"sheet":"Mesečni stroški","index":2,"n_rows":62,"n_cols":7,"rows_kept":62,"merged":[[0,1,0,4],[0,5,0,6]]}
["Na tem delovnem listu lahko izračunate svoje mesečni stroški. Naslov tega delovnega lista je v celici na desni strani. Če se želite premakniti na delovni list »Poročilo mesečnega proračuna«, izberite celico F1.","Mesečni stroški",{"$nulls":3},"Poročilo mesečnega proračuna"]
[" Vnesite podatke v tabelo »Podatki o proračunu« z začetkom v celici na desni.","Opis","Kategorija","Predvideni stroški","Dejanski stroški","Razlika","Pregled dejanskih stroškov"]
[null,"Obšolske dejavnosti","Otroci",{"v":40,"d":"40 €"},{"v":40,"d":"40 €"},{"$f":"Podatki_o_proračunu[[#This Row],[Predvideni stroški]]-Podatki_o_proračunu[[#This Row],[Dejanski stroški]]","v":{"v":0,"d":"0 €"}},{"$f":"Podatki_o_proračunu[[#This Row],[Dejanski stroški]]","v":{"v":40,"d":"40 €"}}]
[null,"Zdravstvene potrebščine","Otroci",null,null,{"$f":"Podatki_o_proračunu[[#This Row],[Predvideni stroški]]-Podatki_o_proračunu[[#This Row],[Dejanski stroški]]","v":{"v":0,"d":"0 €"}},{"$f":"Podatki_o_proračunu[[#This Row],[Dejanski stroški]]","v":{"v":0,"d":"0 €"}}]
[null,"Šolske potrebščine","Otroci",null,null,{"$f":"Podatki_o_proračunu[[#This Row],[Predvideni stroški]]-Podatki_o_proračunu[[#This Row],[Dejanski stroški]]","v":{"v":0,"d":"0 €"}},{"$f":"Podatki_o_proračunu[[#This Row],[Dejanski stroški]]","v":{"v":0,"d":"0 €"}}]
[null,"Šolnina","Otroci",{"v":100,"d":"100 €"},{"v":100,"d":"100 €"},{"$f":"Podatki_o_proračunu[[#This Row],[Predvideni stroški]]-Podatki_o_proračunu[[#This Row],[Dejanski stroški]]","v":{"v":0,"d":"0 €"}},{"$f":"Podatki_o_proračunu[[#This Row],[Dejanski stroški]]","v":{"v":100,"d":"100 €"}}]
[null,"Koncerti","Razvedrilo",{"v":50,"d":"50 €"},{"v":40,"d":"40 €"},{"$f":"Podatki_o_proračunu[[#This Row],[Predvideni stroški]]-Podatki_o_proračunu[[#This Row],[Dejanski stroški]]","v":{"v":10,"d":"10 €"}},{"$f":"Podatki_o_proračunu[[#This Row],[Dejanski stroški]]","v":{"v":40,"d":"40 €"}}]
[null,"Gledališče","Razvedrilo",{"v":200,"d":"200 €"},{"v":150,"d":"150 €"},{"$f":"Podatki_o_proračunu[[#This Row],[Predvideni stroški]]-Podatki_o_proračunu[[#This Row],[Dejanski stroški]]","v":{"v":50,"d":"50 €"}},{"$f":"Podatki_o_proračunu[[#This Row],[Dejanski stroški]]","v":{"v":150,"d":"150 €"}}]
[null,"Filmi","Razvedrilo",{"v":50,"d":"50 €"},{"v":28,"d":"28 €"},{"$f":"Podatki_o_proračunu[[#This Row],[Predvideni stroški]]-Podatki_o_proračunu[[#This Row],[Dejanski stroški]]","v":{"v":22,"d":"22 €"}},{"$f":"Podatki_o_proračunu[[#This Row],[Dejanski stroški]]","v":{"v":28,"d":"28 €"}}]
[null,"Glasba (CD-ji, prenosi itd.)","Razvedrilo",{"v":50,"d":"50 €"},{"v":30,"d":"30 €"},{"$f":"Podatki_o_proračunu[[#This Row],[Predvideni stroški]]-Podatki_o_proračunu[[#This Row],[Dejanski stroški]]","v":{"v":20,"d":"20 €"}},{"$f":"Podatki_o_proračunu[[#This Row],[Dejanski stroški]]","v":{"v":30,"d":"30 €"}}]
[null,"Športni dogodki","Razvedrilo",{"v":0,"d":"0 €"},{"v":40,"d":"40 €"},{"$f":"Podatki_o_proračunu[[#This Row],[Predvideni stroški]]-Podatki_o_proračunu[[#This Row],[Dejanski stroški]]","v":{"v":-40,"d":"-40 €"}},{"$f":"Podatki_o_proračunu[[#This Row],[Dejanski stroški]]","v":{"v":40,"d":"40 €"}}]
[null,"Video/DVD (nakup)","Razvedrilo",{"v":20,"d":"20 €"},{"v":50,"d":"50 €"},{"$f":"Podatki_o_proračunu[[#This Row],[Predvideni stroški]]-Podatki_o_proračunu[[#This Row],[Dejanski stroški]]","v":{"v":-30,"d":"-30 €"}},{"$f":"Podatki_o_proračunu[[#This Row],[Dejanski stroški]]","v":{"v":50,"d":"50 €"}}]
[null,"Video/DVD (izposoja)","Razvedrilo",{"v":30,"d":"30 €"},{"v":20,"d":"20 €"},{"$f":"Podatki_o_proračunu[[#This Row],[Predvideni stroški]]-Podatki_o_proračunu[[#This Row],[Dejanski stroški]]","v":{"v":10,"d":"10 €"}},{"$f":"Podatki_o_proračunu[[#This Row],[Dejanski stroški]]","v":{"v":20,"d":"20 €"}}]
[null,"Kosila v restavracijah","Hrana",{"v":1000,"d":"1,000 €"},{"v":1200,"d":"1,200 €"},{"$f":"Podatki_o_proračunu[[#This Row],[Predvideni stroški]]-Podatki_o_proračunu[[#This Row],[Dejanski stroški]]","v":{"v":-200,"d":"-200 €"}},{"$f":"Podatki_o_proračunu[[#This Row],[Dejanski stroški]]","v":{"v":1200,"d":"1,200 €"}}]
[null,"Živila","Hrana",{"v":100,"d":"100 €"},{"v":120,"d":"120 €"},{"$f":"Podatki_o_proračunu[[#This Row],[Predvideni stroški]]-Podatki_o_proračunu[[#This Row],[Dejanski stroški]]","v":{"v":-20,"d":"-20 €"}},{"$f":"Podatki_o_proračunu[[#This Row],[Dejanski stroški]]","v":{"v":120,"d":"120 €"}}]
[null,"Dobrodelno 1","Darila in nakazila dobrodelnim ustanovam",{"v":75,"d":"75 €"},{"v":100,"d":"100 €"},{"$f":"Podatki_o_proračunu[[#This Row],[Predvideni stroški]]-Podatki_o_proračunu[[#This Row],[Dejanski stroški]]","v":{"v":-25,"d":"-25 €"}},{"$f":"Podatki_o_proračunu[[#This Row],[Dejanski stroški]]","v":{"v":100,"d":"100 €"}}]
[null,"Dobrodelno 2","Darila in nakazila dobrodelnim ustanovam",{"v":25,"d":"25 €"},{"v":25,"d":"25 €"},{"$f":"Podatki_o_proračunu[[#This Row],[Predvideni stroški]]-Podatki_o_proračunu[[#This Row],[Dejanski stroški]]","v":{"v":0,"d":"0 €"}},{"$f":"Podatki_o_proračunu[[#This Row],[Dejanski stroški]]","v":{"v":25,"d":"25 €"}}]
[null,"Darilo 1","Darila in nakazila dobrodelnim ustanovam",null,null,{"$f":"Podatki_o_proračunu[[#This Row],[Predvideni stroški]]-Podatki_o_proračunu[[#This Row],[Dejanski stroški]]","v":{"v":0,"d":"0 €"}},{"$f":"Podatki_o_proračunu[[#This Row],[Dejanski stroški]]","v":{"v":0,"d":"0 €"}}]
[null,"Darilo 2","Darila in nakazila dobrodelnim ustanovam",null,null,{"$f":"Podatki_o_proračunu[[#This Row],[Predvideni stroški]]-Podatki_o_proračunu[[#This Row],[Dejanski stroški]]","v":{"v":0,"d":"0 €"}},{"$f":"Podatki_o_proračunu[[#This Row],[Dejanski stroški]]","v":{"v":0,"d":"0 €"}}]
[null,"Kabelska/satelitska TV","Nastanitev",{"v":100,"d":"100 €"},{"v":100,"d":"100 €"},{"$f":"Podatki_o_proračunu[[#This Row],[Predvideni stroški]]-Podatki_o_proračunu[[#This Row],[Dejanski stroški]]","v":{"v":0,"d":"0 €"}},{"$f":"Podatki_o_proračunu[[#This Row],[Dejanski stroški]]","v":{"v":100,"d":"100 €"}}]
[null,"Elektrika","Nastanitev",{"v":45,"d":"45 €"},{"v":50,"d":"50 €"},{"$f":"Podatki_o_proračunu[[#This Row],[Predvideni stroški]]-Podatki_o_proračunu[[#This Row],[Dejanski stroški]]","v":{"v":-5,"d":"-5 €"}},{"$f":"Podatki_o_proračunu[[#This Row],[Dejanski stroški]]","v":{"v":50,"d":"50 €"}}]
[null,"Plin","Nastanitev",{"v":300,"d":"300 €"},{"v":400,"d":"400 €"},{"$f":"Podatki_o_proračunu[[#This Row],[Predvideni stroški]]-Podatki_o_proračunu[[#This Row],[Dejanski stroški]]","v":{"v":-100,"d":"-100 €"}},{"$f":"Podatki_o_proračunu[[#This Row],[Dejanski stroški]]","v":{"v":400,"d":"400 €"}}]
[null,"Čistilni servis","Nastanitev",{"v":200,"d":"200 €"},null,{"$f":"Podatki_o_proračunu[[#This Row],[Predvideni stroški]]-Podatki_o_proračunu[[#This Row],[Dejanski stroški]]","v":{"v":200,"d":"200 €"}},{"$f":"Podatki_o_proračunu[[#This Row],[Dejanski stroški]]","v":{"v":0,"d":"0 €"}}]
[null,"Vzdrževanje","Nastanitev",{"v":200,"d":"200 €"},{"v":150,"d":"150 €"},{"$f":"Podatki_o_proračunu[[#This Row],[Predvideni stroški]]-Podatki_o_proračunu[[#This Row],[Dejanski stroški]]","v":{"v":50,"d":"50 €"}},{"$f":"Podatki_o_proračunu[[#This Row],[Dejanski stroški]]","v":{"v":150,"d":"150 €"}}]
[null,"Hipoteka ali najemnina","Nastanitev",{"v":1700,"d":"1,700 €"},{"v":1700,"d":"1,700 €"},{"$f":"Podatki_o_proračunu[[#This Row],[Predvideni stroški]]-Podatki_o_proračunu[[#This Row],[Dejanski stroški]]","v":{"v":0,"d":"0 €"}},{"$f":"Podatki_o_proračunu[[#This Row],[Dejanski stroški]]","v":{"v":1700,"d":"1,700 €"}}]
[null,"Zemeljski plin/nafta","Nastanitev",null,null,{"$f":"Podatki_o_proračunu[[#This Row],[Predvideni stroški]]-Podatki_o_proračunu[[#This Row],[Dejanski stroški]]","v":{"v":0,"d":"0 €"}},{"$f":"Podatki_o_proračunu[[#This Row],[Dejanski stroški]]","v":{"v":0,"d":"0 €"}}]
[null,"V spletu/internet","Nastanitev",{"v":100,"d":"100 €"},{"v":100,"d":"100 €"},{"$f":"Podatki_o_proračunu[[#This Row],[Predvideni stroški]]-Podatki_o_proračunu[[#This Row],[Dejanski stroški]]","v":{"v":0,"d":"0 €"}},{"$f":"Podatki_o_proračunu[[#This Row],[Dejanski stroški]]","v":{"v":100,"d":"100 €"}}]
[null,"Telefon (mobilni)","Nastanitev",{"v":60,"d":"60 €"},{"v":60,"d":"60 €"},{"$f":"Podatki_o_proračunu[[#This Row],[Predvideni stroški]]-Podatki_o_proračunu[[#This Row],[Dejanski stroški]]","v":{"v":0,"d":"0 €"}},{"$f":"Podatki_o_proračunu[[#This Row],[Dejanski stroški]]","v":{"v":60,"d":"60 €"}}]
[null,"Telefon (dom)","Nastanitev",{"v":35,"d":"35 €"},{"v":39,"d":"39 €"},{"$f":"Podatki_o_proračunu[[#This Row],[Predvideni stroški]]-Podatki_o_proračunu[[#This Row],[Dejanski stroški]]","v":{"v":-4,"d":"-4 €"}},{"$f":"Podatki_o_proračunu[[#This Row],[Dejanski stroški]]","v":{"v":39,"d":"39 €"}}]
[null,"Zaloge","Nastanitev",{"v":40,"d":"40 €"},{"v":55,"d":"55 €"},{"$f":"Podatki_o_proračunu[[#This Row],[Predvideni stroški]]-Podatki_o_proračunu[[#This Row],[Dejanski stroški]]","v":{"v":-15,"d":"-15 €"}},{"$f":"Podatki_o_proračunu[[#This Row],[Dejanski stroški]]","v":{"v":55,"d":"55 €"}}]
[null,"Odvoz smeti in recikliranje","Nastanitev",{"v":25,"d":"25 €"},{"v":22,"d":"22 €"},{"$f":"Podatki_o_proračunu[[#This Row],[Predvideni stroški]]-Podatki_o_proračunu[[#This Row],[Dejanski stroški]]","v":{"v":3,"d":"3 €"}},{"$f":"Podatki_o_proračunu[[#This Row],[Dejanski stroški]]","v":{"v":22,"d":"22 €"}}]
[null,"Voda in kanalščina","Nastanitev",{"v":25,"d":"25 €"},{"v":26,"d":"26 €"},{"$f":"Podatki_o_proračunu[[#This Row],[Predvideni stroški]]-Podatki_o_proračunu[[#This Row],[Dejanski stroški]]","v":{"v":-1,"d":"-1 €"}},{"$f":"Podatki_o_proračunu[[#This Row],[Dejanski stroški]]","v":{"v":26,"d":"26 €"}}]
[null,"Zdravje","Zavarovanje",{"v":400,"d":"400 €"},{"v":400,"d":"400 €"},{"$f":"Podatki_o_proračunu[[#This Row],[Predvideni stroški]]-Podatki_o_proračunu[[#This Row],[Dejanski stroški]]","v":{"v":0,"d":"0 €"}},{"$f":"Podatki_o_proračunu[[#This Row],[Dejanski stroški]]","v":{"v":400,"d":"400 €"}}]
[null,"Dom","Zavarovanje",{"v":400,"d":"400 €"},{"v":400,"d":"400 €"},{"$f":"Podatki_o_proračunu[[#This Row],[Predvideni stroški]]-Podatki_o_proračunu[[#This Row],[Dejanski stroški]]","v":{"v":0,"d":"0 €"}},{"$f":"Podatki_o_proračunu[[#This Row],[Dejanski stroški]]","v":{"v":400,"d":"400 €"}}]
[null,"Življenjsko","Zavarovanje",{"v":100,"d":"100 €"},{"v":100,"d":"100 €"},{"$f":"Podatki_o_proračunu[[#This Row],[Predvideni stroški]]-Podatki_o_proračunu[[#This Row],[Dejanski stroški]]","v":{"v":0,"d":"0 €"}},{"$f":"Podatki_o_proračunu[[#This Row],[Dejanski stroški]]","v":{"v":100,"d":"100 €"}}]
[null,"Kreditna kartica 1","Posojila",{"v":200,"d":"200 €"},{"v":200,"d":"200 €"},{"$f":"Podatki_o_proračunu[[#This Row],[Predvideni stroški]]-Podatki_o_proračunu[[#This Row],[Dejanski stroški]]","v":{"v":0,"d":"0 €"}},{"$f":"Podatki_o_proračunu[[#This Row],[Dejanski stroški]]","v":{"v":200,"d":"200 €"}}]
[null,"Kreditna kartica 2","Posojila",null,null,{"$f":"Podatki_o_proračunu[[#This Row],[Predvideni stroški]]-Podatki_o_proračunu[[#This Row],[Dejanski stroški]]","v":{"v":0,"d":"0 €"}},{"$f":"Podatki_o_proračunu[[#This Row],[Dejanski stroški]]","v":{"v":0,"d":"0 €"}}]
[null,"Kreditna kartica 3","Posojila",null,null,{"$f":"Podatki_o_proračunu[[#This Row],[Predvideni stroški]]-Podatki_o_proračunu[[#This Row],[Dejanski stroški]]","v":{"v":0,"d":"0 €"}},{"$f":"Podatki_o_proračunu[[#This Row],[Dejanski stroški]]","v":{"v":0,"d":"0 €"}}]
[null,"Osebno","Posojila",null,null,{"$f":"Podatki_o_proračunu[[#This Row],[Predvideni stroški]]-Podatki_o_proračunu[[#This Row],[Dejanski stroški]]","v":{"v":0,"d":"0 €"}},{"$f":"Podatki_o_proračunu[[#This Row],[Dejanski stroški]]","v":{"v":0,"d":"0 €"}}]
[null,"Študentsko","Posojila",null,null,{"$f":"Podatki_o_proračunu[[#This Row],[Predvideni stroški]]-Podatki_o_proračunu[[#This Row],[Dejanski stroški]]","v":{"v":0,"d":"0 €"}},{"$f":"Podatki_o_proračunu[[#This Row],[Dejanski stroški]]","v":{"v":0,"d":"0 €"}}]
[null,"Oblačila","Osebna nega",{"v":150,"d":"150 €"},{"v":140,"d":"140 €"},{"$f":"Podatki_o_proračunu[[#This Row],[Predvideni stroški]]-Podatki_o_proračunu[[#This Row],[Dejanski stroški]]","v":{"v":10,"d":"10 €"}},{"$f":"Podatki_o_proračunu[[#This Row],[Dejanski stroški]]","v":{"v":140,"d":"140 €"}}]
[null,"Kemična čistilnica","Osebna nega",null,null,{"$f":"Podatki_o_proračunu[[#This Row],[Predvideni stroški]]-Podatki_o_proračunu[[#This Row],[Dejanski stroški]]","v":{"v":0,"d":"0 €"}},{"$f":"Podatki_o_proračunu[[#This Row],[Dejanski stroški]]","v":{"v":0,"d":"0 €"}}]
[null,"Lasje/nohti","Osebna nega",null,null,{"$f":"Podatki_o_proračunu[[#This Row],[Predvideni stroški]]-Podatki_o_proračunu[[#This Row],[Dejanski stroški]]","v":{"v":0,"d":"0 €"}},{"$f":"Podatki_o_proračunu[[#This Row],[Dejanski stroški]]","v":{"v":0,"d":"0 €"}}]
[null,"Fitnes","Osebna nega",null,null,{"$f":"Podatki_o_proračunu[[#This Row],[Predvideni stroški]]-Podatki_o_proračunu[[#This Row],[Dejanski stroški]]","v":{"v":0,"d":"0 €"}},{"$f":"Podatki_o_proračunu[[#This Row],[Dejanski stroški]]","v":{"v":0,"d":"0 €"}}]
[null,"Zdravstvene potrebščine","Osebna nega",null,null,{"$f":"Podatki_o_proračunu[[#This Row],[Predvideni stroški]]-Podatki_o_proračunu[[#This Row],[Dejanski stroški]]","v":{"v":0,"d":"0 €"}},{"$f":"Podatki_o_proračunu[[#This Row],[Dejanski stroški]]","v":{"v":0,"d":"0 €"}}]
[null,"Hrana","Hišni ljubljenčki",{"v":150,"d":"150 €"},{"v":75,"d":"75 €"},{"$f":"Podatki_o_proračunu[[#This Row],[Predvideni stroški]]-Podatki_o_proračunu[[#This Row],[Dejanski stroški]]","v":{"v":75,"d":"75 €"}},{"$f":"Podatki_o_proračunu[[#This Row],[Dejanski stroški]]","v":{"v":75,"d":"75 €"}}]
[null,"Nega","Hišni ljubljenčki",{"v":20,"d":"20 €"},{"v":25,"d":"25 €"},{"$f":"Podatki_o_proračunu[[#This Row],[Predvideni stroški]]-Podatki_o_proračunu[[#This Row],[Dejanski stroški]]","v":{"v":-5,"d":"-5 €"}},{"$f":"Podatki_o_proračunu[[#This Row],[Dejanski stroški]]","v":{"v":25,"d":"25 €"}}]
[null,"Zdravstvene potrebščine","Hišni ljubljenčki",null,null,{"$f":"Podatki_o_proračunu[[#This Row],[Predvideni stroški]]-Podatki_o_proračunu[[#This Row],[Dejanski stroški]]","v":{"v":0,"d":"0 €"}},{"$f":"Podatki_o_proračunu[[#This Row],[Dejanski stroški]]","v":{"v":0,"d":"0 €"}}]
[null,"Igrače","Hišni ljubljenčki",null,null,{"$f":"Podatki_o_proračunu[[#This Row],[Predvideni stroški]]-Podatki_o_proračunu[[#This Row],[Dejanski stroški]]","v":{"v":0,"d":"0 €"}},{"$f":"Podatki_o_proračunu[[#This Row],[Dejanski stroški]]","v":{"v":0,"d":"0 €"}}]
[null,"Naložbeni račun","Prihranki ali naložbe",{"v":200,"d":"200 €"},{"v":200,"d":"200 €"},{"$f":"Podatki_o_proračunu[[#This Row],[Predvideni stroški]]-Podatki_o_proračunu[[#This Row],[Dejanski stroški]]","v":{"v":0,"d":"0 €"}},{"$f":"Podatki_o_proračunu[[#This Row],[Dejanski stroški]]","v":{"v":200,"d":"200 €"}}]
[null,"Varčevalni račun","Prihranki ali naložbe",null,null,{"$f":"Podatki_o_proračunu[[#This Row],[Predvideni stroški]]-Podatki_o_proračunu[[#This Row],[Dejanski stroški]]","v":{"v":0,"d":"0 €"}},{"$f":"Podatki_o_proračunu[[#This Row],[Dejanski stroški]]","v":{"v":0,"d":"0 €"}}]
[null,"Zvezno","Davki",{"v":300,"d":"300 €"},{"v":300,"d":"300 €"},{"$f":"Podatki_o_proračunu[[#This Row],[Predvideni stroški]]-Podatki_o_proračunu[[#This Row],[Dejanski stroški]]","v":{"v":0,"d":"0 €"}},{"$f":"Podatki_o_proračunu[[#This Row],[Dejanski stroški]]","v":{"v":300,"d":"300 €"}}]
[null,"Lokalno","Davki",null,null,{"$f":"Podatki_o_proračunu[[#This Row],[Predvideni stroški]]-Podatki_o_proračunu[[#This Row],[Dejanski stroški]]","v":{"v":0,"d":"0 €"}},{"$f":"Podatki_o_proračunu[[#This Row],[Dejanski stroški]]","v":{"v":0,"d":"0 €"}}]
[null,"Državno","Davki",null,null,{"$f":"Podatki_o_proračunu[[#This Row],[Predvideni stroški]]-Podatki_o_proračunu[[#This Row],[Dejanski stroški]]","v":{"v":0,"d":"0 €"}},{"$f":"Podatki_o_proračunu[[#This Row],[Dejanski stroški]]","v":{"v":0,"d":"0 €"}}]
[null,"Vozovnica za avtobus/taksi","Prevoz",{"v":100,"d":"100 €"},{"v":150,"d":"150 €"},{"$f":"Podatki_o_proračunu[[#This Row],[Predvideni stroški]]-Podatki_o_proračunu[[#This Row],[Dejanski stroški]]","v":{"v":-50,"d":"-50 €"}},{"$f":"Podatki_o_proračunu[[#This Row],[Dejanski stroški]]","v":{"v":150,"d":"150 €"}}]
[null,"Gorivo","Prevoz",{"v":450,"d":"450 €"},{"v":400,"d":"400 €"},{"$f":"Podatki_o_proračunu[[#This Row],[Predvideni stroški]]-Podatki_o_proračunu[[#This Row],[Dejanski stroški]]","v":{"v":50,"d":"50 €"}},{"$f":"Podatki_o_proračunu[[#This Row],[Dejanski stroški]]","v":{"v":400,"d":"400 €"}}]
[null,"Zavarovanje","Prevoz",{"v":300,"d":"300 €"},{"v":300,"d":"300 €"},{"$f":"Podatki_o_proračunu[[#This Row],[Predvideni stroški]]-Podatki_o_proračunu[[#This Row],[Dejanski stroški]]","v":{"v":0,"d":"0 €"}},{"$f":"Podatki_o_proračunu[[#This Row],[Dejanski stroški]]","v":{"v":300,"d":"300 €"}}]
[null,"Registracija ","Prevoz",{"v":25,"d":"25 €"},{"v":25,"d":"25 €"},{"$f":"Podatki_o_proračunu[[#This Row],[Predvideni stroški]]-Podatki_o_proračunu[[#This Row],[Dejanski stroški]]","v":{"v":0,"d":"0 €"}},{"$f":"Podatki_o_proračunu[[#This Row],[Dejanski stroški]]","v":{"v":25,"d":"25 €"}}]
[null,"Vzdrževanje","Prevoz",{"v":100,"d":"100 €"},{"v":50,"d":"50 €"},{"$f":"Podatki_o_proračunu[[#This Row],[Predvideni stroški]]-Podatki_o_proračunu[[#This Row],[Dejanski stroški]]","v":{"v":50,"d":"50 €"}},{"$f":"Podatki_o_proračunu[[#This Row],[Dejanski stroški]]","v":{"v":50,"d":"50 €"}}]
[null,"Parkirnina","Prevoz",null,null,{"$f":"Podatki_o_proračunu[[#This Row],[Predvideni stroški]]-Podatki_o_proračunu[[#This Row],[Dejanski stroški]]","v":{"v":0,"d":"0 €"}},{"$f":"Podatki_o_proračunu[[#This Row],[Dejanski stroški]]","v":{"v":0,"d":"0 €"}}]
[null,"Plačilo vozila","Prevoz",{"v":450,"d":"450 €"},{"v":450,"d":"450 €"},{"$f":"Podatki_o_proračunu[[#This Row],[Predvideni stroški]]-Podatki_o_proračunu[[#This Row],[Dejanski stroški]]","v":{"v":0,"d":"0 €"}},{"$f":"Podatki_o_proračunu[[#This Row],[Dejanski stroški]]","v":{"v":450,"d":"450 €"}}]
[null,"Vsota",null,{"$f":"SUBTOTAL(109,Podatki_o_proračunu[Predvideni stroški])","v":{"v":7915,"d":"7,915 €"}},{"$f":"SUBTOTAL(109,Podatki_o_proračunu[Dejanski stroški])","v":{"v":7860,"d":"7,860 €"}},{"$f":"SUBTOTAL(109,Podatki_o_proračunu[Razlika])","v":{"v":55,"d":"55 €"}}]

{"sheet":"Dodatni podatki","index":3,"n_rows":15,"n_cols":5,"rows_kept":15}
["Uporabite ta delovni list za spreminjanje spustnega seznama stolpca »Kategorija« v tabeli »Podrobnosti proračuna« na delovnem listu »Mesečni stroški«. V ta namen spremenite kategorijo ali pa vnesite novo kategorijo v tabelo »Iskanje kategorije proračuna« z začetkom v celici E2. Vrtilna tabela, povezana z grafikonom »Pregled proračuna« na delovnem listu »Poročilo mesečnega proračuna« z začetkom v celici B2.","Vrtilna tabela za grafikon »Pregled proračuna«",null,null,"Seznam za iskanje za kategorijo podrobnosti proračuna"]
[null,"Kategorija","Stroški",null,"Iskanje kategorije proračuna"]
[null,"Otroci",{"v":140,"d":"140 €"},null,"Otroci"]
[null,"Razvedrilo",{"v":358,"d":"358 €"},null,"Razvedrilo"]
[null,"Hrana",{"v":1320,"d":"1,320 €"},null,"Hrana"]
[null,"Darila in nakazila dobrodelnim ustanovam",{"v":125,"d":"125 €"},null,"Darila in nakazila dobrodelnim ustanovam"]
[null,"Nastanitev",{"v":2702,"d":"2,702 €"},null,"Nastanitev"]
[null,"Zavarovanje",{"v":900,"d":"900 €"},null,"Zavarovanje"]
[null,"Posojila",{"v":200,"d":"200 €"},null,"Posojila"]
[null,"Osebna nega",{"v":140,"d":"140 €"},null,"Osebna nega"]
[null,"Hišni ljubljenčki",{"v":100,"d":"100 €"},null,"Hišni ljubljenčki"]
[null,"Prihranki ali naložbe",{"v":200,"d":"200 €"},null,"Prihranki ali naložbe"]
[null,"Davki",{"v":300,"d":"300 €"},null,"Davki"]
[null,"Prevoz",{"v":1375,"d":"1,375 €"},null,"Prevoz"]
[null,"Skupna vsota",{"v":7860,"d":"7,860 €"}]